fUSD/lending_fUSD_20260111
["ID","MTS","AMOUNT","RATE_DAILY","PERIOD"]
[401348864,1768150242986,-252.711601,0.00016986,2]
[401348866,1768150242995,-1580.779284,0.00016986,2]
[401348868,1768150243004,-1580.779284,0.00016986,2]
[401348870,1768150243014,-1580.779284,0.00016986,2]
[401348873,1768150243025,-1580.779284,0.00016986,2]
[401348875,1768150243036,-1001.36882,0.00016986,2]
[401348877,1768150243045,-2068.70979,0.00016986,2]
[401348878,1768150243055,-1001.36882,0.00016986,2]
[401348881,1768150243065,-2068.70979,0.00016986,2]
[401348883,1768150243074,-1001.36882,0.00016986,2]
[401348884,1768150243083,-2068.70979,0.00016986,2]
[401348886,1768150243093,-1001.36882,0.00016986,2]
[401348889,1768150243103,-2068.70979,0.00016986,2]
[401348891,1768150243113,-515.768598,0.00016986,2]
[401348893,1768150243122,-201.153607,0.00016986,2]
[401348894,1768150243131,-515.768598,0.00016986,2]
[401348895,1768150243141,-201.153607,0.00016986,2]
[401348896,1768150243150,-704.160543,0.00016986,2]
[401348897,1768150243159,-515.768598,0.00016986,2]
[401348898,1768150243168,-201.153607,0.00016986,2]
[401348899,1768150243177,-201.153607,0.00016986,2]
[401348900,1768150243186,-704.160543,0.00016986,2]
[401348901,1768150243195,-515.768598,0.00016986,2]
[401348932,1768150243467,-704.160543,0.00016986,2]
[401348937,1768150243477,-704.160543,0.00016986,2]
[401348939,1768150243487,-151.0,0.00016986,2]
[401348941,1768150243496,-151.0,0.00016986,2]
[401348943,1768150243505,-151.0,0.00016986,2]
[401348945,1768150243514,-4106.764814,0.00016986,2]
[401348947,1768150243524,-151.0,0.00016986,2]
[401348949,1768150243534,-284.025534,0.00016986,2]
[401348951,1768150243544,-165.572138,0.00016986,2]
[401348953,1768150243553,-372.861137,0.00016986,2]
[401348954,1768150243562,-4106.764814,0.00016986,2]
[401348956,1768150243571,-184.371786,0.00016986,2]
[401348958,1768150243581,-165.572138,0.00016986,2]
[401348960,1768150243590,-151.0,0.00016986,2]
[401348962,1768150243600,-372.861137,0.00016986,2]
[401348964,1768150243609,-4106.764814,0.00016986,2]
[401348966,1768150243618,-165.572138,0.00016986,2]
[401348968,1768150243627,-332.214435,0.00016986,2]
[401348970,1768150243636,-1018.724913,0.00016986,2]
[401348972,1768150243645,-372.861137,0.00016986,2]
[401348974,1768150243654,-4106.764814,0.00016986,2]
[401348976,1768150243664,-165.572138,0.00016986,2]
[401348978,1768150243673,-332.214435,0.00016986,2]
[401348980,1768150243682,-1018.724913,0.00016986,2]
[401348982,1768150243692,-372.861137,0.00016986,2]
[401348984,1768150243701,-153.803305,0.00016986,2]
[401348986,1768150243711,-332.214435,0.00016986,2]
[401348988,1768150243720,-1018.724913,0.00016986,2]
[401348990,1768150243729,-151.0,0.00016986,2]
[401348992,1768150243738,-151.0,0.00016986,2]
[401348994,1768150243748,-332.214435,0.00016986,2]
[401348996,1768150243759,-1018.724913,0.00016986,2]
[401348998,1768150243768,-151.0,0.00016986,2]
[401349000,1768150243779,-573.970445,0.00016986,2]
[401349002,1768150243788,-151.0,0.00016986,2]
[401349004,1768150243798,-151.0,0.00016986,2]
[401349007,1768150243808,-151.0,0.00016986,2]
[401349009,1768150243824,-573.970445,0.00016986,2]
[401349010,1768150243834,-573.970445,0.00016986,2]
[401349012,1768150243844,-580.109053,0.00016986,2]
[401349014,1768150243853,-151.0,0.00016986,2]
[401349016,1768150243863,-580.109053,0.00016986,2]
[401349018,1768150243873,-573.970445,0.00016986,2]
[401349020,1768150243882,-1965.222408,0.00016986,2]
[401349022,1768150243891,-580.109053,0.00016986,2]
[401349024,1768150243901,-438.857825,0.00016986,2]
[401349026,1768150243910,-1965.222408,0.00016986,2]
[401349028,1768150243920,-196.746434,0.00016986,2]
[401349030,1768150243930,-580.109053,0.00016986,2]
[401349032,1768150243939,-438.857825,0.00016986,2]
[401349034,1768150243948,-196.746434,0.00016986,2]
[401349036,1768150243959,-1965.222408,0.00016986,2]
[401349038,1768150243968,-438.857825,0.00016986,2]
[401349041,1768150243978,-196.746434,0.00016986,2]
[401349042,1768150243987,-1965.222408,0.00016986,2]
[401349044,1768150243997,-438.857825,0.00016986,2]
[401349047,1768150244007,-196.746434,0.00016986,2]
[401349048,1768150244016,-1493.308871,0.00016986,2]
[401349051,1768150244027,-151.0,0.00016986,2]
[401349053,1768150244036,-1493.308871,0.00016986,2]
[401349055,1768150244046,-733.26669,0.00016986,2]
[401349057,1768150244055,-921.834081,0.00016986,2]
[401349059,1768150244064,-2235.751841,0.00016986,2]
[401349061,1768150244074,-1493.308871,0.00016986,2]
[401349063,1768150244083,-733.26669,0.00016986,2]
[401349065,1768150244092,-921.834081,0.00016986,2]
[401349067,1768150244102,-2235.751841,0.00016986,2]
[401349069,1768150244111,-1493.308871,0.00016986,2]
[401349071,1768150244120,-733.26669,0.00016986,2]
[401349073,1768150244129,-921.834081,0.00016986,2]
[401349074,1768150244138,-2235.751841,0.00016986,2]
[401349076,1768150244148,-733.26669,0.00016986,2]
[401349078,1768150244159,-921.834081,0.00016986,2]
[401349080,1768150244169,-2235.751841,0.00016986,2]
[401349082,1768150244178,-151.0,0.00016986,2]
[401349084,1768150244188,-151.0,0.00016986,2]
[401349086,1768150244197,-182.359179,0.00016986,2]
[401349088,1768150244207,-241.091622,0.00016986,2]
[401349090,1768150244216,-151.0,0.00016986,2]
[401349092,1768150244226,-151.0,0.00016986,2]
[401349094,1768150244236,-455.569602,0.00016986,2]
[401349096,1768150244246,-455.569602,0.00016986,2]
[401349098,1768150244255,-455.569602,0.00016986,2]
[401349100,1768150244266,-455.569602,0.00016986,2]
[401349102,1768150244277,-200.01,0.00016986,2]
[401349104,1768150244287,-50395.02,0.00016986,2]
[401349106,1768150244296,-150.0,0.00017,2]
[401349108,1768150244306,-150.0,0.00017,2]
[401349110,1768150244315,-250.0,0.00017,2]
[401349112,1768150244324,-150.0,0.00017018,2]
[401349114,1768150244333,-906.513466,0.00017041,2]
[401349116,1768150244344,-2039.220797,0.00017041,2]
[401349118,1768150244354,-906.513466,0.00017041,2]
[401349120,1768150244363,-151.0,0.00017041,2]
[401349122,1768150244372,-2039.220797,0.00017041,2]
[401349123,1768150244381,-906.513466,0.00017041,2]
[401349125,1768150244391,-151.0,0.00017041,2]
[401349127,1768150244400,-2039.220797,0.00017041,2]
[401349129,1768150244410,-906.513466,0.00017041,2]
[401349132,1768150244419,-151.0,0.00017041,2]
[401349134,1768150244429,-151.0,0.00017041,2]
[401349136,1768150244438,-275.980319,0.00017041,2]
[401349137,1768150244447,-169.722858,0.00017041,2]
[401349139,1768150244457,-199.832252,0.00017041,2]
[401349141,1768150244467,-2039.220797,0.00017041,2]
[401349143,1768150244475,-151.0,0.00017041,2]
[401349145,1768150244484,-151.0,0.00017041,2]
[401349147,1768150244493,-275.980319,0.00017041,2]
[401349149,1768150244502,-382.764866,0.00017041,2]
[401349151,1768150244512,-199.832252,0.00017041,2]
[401349153,1768150244521,-151.0,0.00017041,2]
[401349155,1768150244530,-151.0,0.00017041,2]
[401349157,1768150244539,-199.832252,0.00017041,2]
[401349159,1768150244549,-382.764866,0.00017041,2]
[401349161,1768150244558,-275.980319,0.00017041,2]
[401349164,1768150244569,-199.832252,0.00017041,2]
[401349165,1768150244578,-275.980319,0.00017041,2]
[401349168,1768150244587,-382.764866,0.00017041,2]
[401349169,1768150244597,-151.0,0.00017041,2]
[401349171,1768150244606,-382.764866,0.00017041,2]
[401349173,1768150244615,-151.0,0.00017041,2]
[401349175,1768150244625,-151.0,0.00017041,2]
[401349177,1768150244634,-151.0,0.00017041,2]
[401349179,1768150244643,-482.99,0.00017041,2]
[401349181,1768150244657,-480.68,0.00017041,2]
[401349183,1768150244666,-482.99,0.00017041,2]
[401349185,1768150244676,-661.82,0.00017041,2]
[401349187,1768150244685,-482.99,0.00017041,2]
[401349189,1768150244695,-482.99,0.00017041,2]
[401349191,1768150244704,-661.82,0.00017041,2]
[401349193,1768150244714,-482.99,0.00017041,2]
[401349195,1768150244723,-661.82,0.00017041,2]
[401349197,1768150244732,-500.51807202,0.00017073,2]
[401349199,1768150244741,-500.0,0.00017073,2]
[401349201,1768150244750,-500.0,0.00017073,2]
[401349203,1768150244760,-500.0,0.00017073,2]
[401349205,1768150244769,-500.0,0.00017073,2]
[401349207,1768150244779,-500.0,0.00017073,2]
[401349209,1768150244788,-256.01043912,0.00017073,2]
[401349211,1768150244797,-500.0,0.00017073,2]
[401349213,1768150244806,-646.79718152,0.00017073,2]
[401349215,1768150244816,-501.08333283,0.00017073,2]
[401349217,1768150244828,-503.68229257,0.00017073,2]
[401349219,1768150244838,-500.35865893,0.00017073,2]
[401349221,1768150244848,-500.0,0.00017073,2]
[401349223,1768150244859,-500.0,0.00017073,2]
[401349225,1768150244871,-500.0,0.00017073,2]
[401349226,1768150244881,-500.0,0.00017073,2]
[401349227,1768150244890,-500.88165281,0.00017073,2]
[401349228,1768150244901,-500.99700202,0.00017073,2]
[401349229,1768150244910,-418.63063862,0.00017073,2]
[401349230,1768150244919,-368.2931148,0.00017073,2]
[401349231,1768150244927,-500.0,0.00017073,2]
[401349232,1768150244936,-500.0,0.00017073,2]
[401349233,1768150244945,-500.0,0.00017073,2]
[401349235,1768150244953,-501.064427,0.00017073,2]
[401349237,1768150244963,-467.05,0.00017078,2]
[401349239,1768150244972,-556.69,0.00017078,2]
[401349241,1768150244982,-651.90523038,0.00017099,2]
[401349243,1768150244991,-500.0,0.00017099,2]
[401349245,1768150245000,-553.64373807,0.00017099,2]
[401349247,1768150245010,-500.0,0.00017099,2]
[401349249,1768150245019,-238.92822807,0.00017099,2]
[401349251,1768150245028,-578.20924308,0.00017099,2]
[401349253,1768150245038,-322.6107,0.00017099,2]
[401349255,1768150245047,-250.0,0.00017099,2]
[401349257,1768150245056,-250.0,0.00017099,2]
[401349259,1768150245064,-250.0,0.00017099,2]
[401349261,1768150245074,-620.0,0.00017099,2]
[401349263,1768150245083,-998.0,0.00017099,2]
[401349265,1768150245092,-402.0,0.00017099,2]
[401349267,1768150245102,-150.0,0.000171,2]
[401349269,1768150245111,-150.0,0.000171,2]
[401349271,1768150245121,-150.0,0.000171,2]
[401349273,1768150245131,-150.0,0.000171,2]
[401349275,1768150245140,-150.0,0.000171,2]
[401349277,1768150245151,-150.0,0.000171,2]
[401349279,1768150245163,-590.06318863,0.00017174,2]
[401349281,1768150245172,-500.0,0.00017178,2]
[401349283,1768150245182,-345.72,0.00017178,2]
[401349285,1768150245191,-556.69,0.00017178,2]
[401349287,1768150245201,-467.05,0.00017178,2]
[401349289,1768150245210,-179.23,0.00017178,2]
[401349291,1768150245219,-556.69,0.00017178,2]
[401349293,1768150245228,-467.05,0.00017178,2]
[401349295,1768150245237,-556.69,0.00017178,2]
[401349297,1768150245246,-179.23,0.00017178,2]
[401349299,1768150245255,-467.05,0.00017178,2]
[401349301,1768150245264,-179.23,0.00017178,2]
[401349302,1768150245273,-556.69,0.00017178,2]
[401349305,1768150245283,-467.05,0.00017178,2]
[401349307,1768150245292,-467.05,0.00017178,2]
[401349309,1768150245301,-556.69,0.00017178,2]
[401349311,1768150245310,-556.69,0.00017178,2]
[401349312,1768150245319,-467.05,0.00017178,2]
[401349315,1768150245330,-556.69,0.00017178,2]
[401349317,1768150245339,-467.05,0.00017178,2]
[401349319,1768150245349,-358.01,0.00017178,2]
[401349321,1768150245358,-199.74,0.00017178,2]
[401349323,1768150245368,-179.23,0.00017178,2]
[401349325,1768150245378,-467.05,0.00017178,2]
[401349327,1768150245387,-171.49,0.00017178,2]
[401349329,1768150245396,-300.0,0.00017178,2]
[401349331,1768150245405,-301.43,0.00017178,2]
[401349333,1768150245414,-171.49,0.00017178,2]
[401349335,1768150245424,-171.49,0.00017178,2]
[401349337,1768150245433,-150.0,0.00017182,2]
[401349339,1768150245443,-150.0,0.000172,2]
[401349341,1768150245452,-150.0,0.000172,2]
[401349342,1768150245461,-1801.26,0.00017221,2]
[401349344,1768150245471,-150.0,0.00017229,2]
[401349347,1768150245481,-556.69,0.00017278,2]
[401349348,1768150245489,-150.0,0.0001728,2]
[401349351,1768150245499,-166.66,0.00017281,2]
[401349353,1768150245508,-1030.41,0.000173,2]
[401349354,1768150245517,-150.0,0.00017325,2]
[401349356,1768150245527,-150.0,0.00017345,2]
[401349358,1768150245536,-254.85,0.0001738,2]
[401349360,1768150245545,-1000.0,0.00017388,2]
[401349362,1768150245555,-1000.0,0.00017388,2]
[401349364,1768150245565,-1000.0,0.00017388,2]
[401349367,1768150245574,-557.36,0.00017388,2]
[401349368,1768150245585,-150.0,0.000174,2]
[401349370,1768150245594,-150.0,0.000174,2]
[401349372,1768150245603,-150.0,0.000174,2]
[401349375,1768150245613,-150.0,0.000174,2]
[401349376,1768150245622,-590.06318863,0.00017416,2]
[401349379,1768150245631,-1990.229,0.00017431,2]
[401349381,1768150245640,-790.011,0.00017431,2]
[401349383,1768150245650,-1800.0,0.00017452,7]
[401349386,1768150245660,-158.88908691,0.00017473,2]
[401349390,1768150245671,-1113.0,0.00017474,2]
[401349392,1768150245680,-150.0,0.00017486,2]
[401349394,1768150245690,-1801.26,0.00017495,2]
[401349396,1768150245701,-2000.0,0.000175,2]
[401349397,1768150245710,-150.0,0.00017509,2]
[401349399,1768150245720,-150.0,0.0001755,2]
[401349402,1768150245730,-340.11,0.0001759,2]
[401349404,1768150245739,-150.0,0.000176,2]
[401349406,1768150245749,-150.0,0.000176,2]
[401349407,1768150245758,-500.0,0.0001761,2]
[401349409,1768150245767,-166.66,0.00017616,2]
[401349411,1768150245776,-1058.15318076,0.00017616,2]
[401349414,1768150245787,-1000.0,0.00017621,2]
[401349416,1768150245796,-243.38858154,0.00017621,2]
[401349418,1768150245807,-502.55051193,0.00017621,2]
[401349420,1768150245818,-1000.0,0.00017621,2]
[401349422,1768150245829,-866.0,0.00017637,2]
[401349423,1768150245839,-150.0,0.0001764,2]
[401349426,1768150245849,-592.20523057,0.0001764,2]
[401349428,1768150245859,-2291.8576557,0.0001764,2]
[401349430,1768150245868,-574.12855637,0.00017647,2]
[401349432,1768150245878,-4746.0,0.00017652,2]
[401349433,1768150245888,-590.06318863,0.00017658,2]
[401349435,1768150245899,-150.0,0.00017673,2]
[401349437,1768150245908,-4517.9,0.00017682,2]
[401349439,1768150245920,-1058.15318076,0.00017699,2]
[401349441,1768150245930,-150.0,0.000177,2]
[401349443,1768150245939,-150.0,0.000177,2]
[401349445,1768150245948,-1000.0,0.000177,2]
[401349447,1768150245958,-440.33,0.00017723,2]
[401349450,1768150245968,-800.0,0.00017726,7]
[401349451,1768150245977,-1000.0,0.0001773,2]
[401349454,1768150245989,-1000.0,0.00017733,2]
[401349456,1768150245998,-1000.0,0.00017736,2]
[401349458,1768150246008,-1000.0,0.00017741,2]
[401349460,1768150246017,-150.0,0.00017743,2]
[401349462,1768150246026,-1058.15318076,0.00017753,2]
[401349464,1768150246035,-1000.0,0.00017758,2]
[401349466,1768150246045,-1000.0,0.0001776,2]
[401349468,1768150246054,-1000.0,0.00017761,2]
[401349470,1768150246063,-1000.0,0.00017762,2]
[401349472,1768150246073,-1000.0,0.00017762,2]
[401349474,1768150246082,-1801.26,0.00017769,2]
[401349476,1768150246092,-1000.0,0.00017771,2]
[401349478,1768150246102,-150.0,0.00017775,2]
[401349480,1768150246112,-1000.0,0.00017776,2]
[401349482,1768150246121,-1000.0,0.0001778,2]
[401349484,1768150246131,-1000.0,0.00017787,2]
[401349485,1768150246140,-10000.0,0.00017791,2]
[401349487,1768150246149,-1000.0,0.00017795,2]
[401349489,1768150246159,-150.0,0.000178,2]
[401349491,1768150246169,-150.0,0.000178,2]
[401349493,1768150246179,-330.14190427,0.000178,2]
[401349495,1768150246189,-1000.0,0.000178,2]
[401349497,1768150246198,-1000.0,0.00017804,2]
[401349499,1768150246209,-1000.0,0.00017814,2]
[401349501,1768150246218,-1000.0,0.00017815,2]
[401349504,1768150246228,-254.85,0.00017815,2]
[401349505,1768150246238,-2201.92484839,0.0001782,2]
[401349507,1768150246248,-971.11466,0.0001782,2]
[401349510,1768150246258,-971.11466,0.0001782,2]
[401349511,1768150246268,-971.11466,0.0001783,2]
[401349513,1768150246279,-1058.15318076,0.00017836,2]
[401349515,1768150246288,-150.0,0.00017836,2]
[401349517,1768150246298,-330.14190427,0.0001785,2]
[401349519,1768150246307,-1000.0,0.00017854,2]
[401349521,1768150246316,-1000.0,0.00017855,2]
[401349525,1768150246325,-200.0,0.00017856,2]
[401349526,1768150246335,-1000.0,0.00017857,2]
[401349528,1768150246345,-971.11466,0.0001786,2]
[401349530,1768150246354,-25000.0,0.00017874,3]
[401349533,1768150246364,-1000.0,0.00017875,2]
[401349534,1768150246374,-1000.0,0.00017878,2]
[401349536,1768150246383,-971.11466,0.0001788,2]
[401349538,1768150246392,-25000.0,0.00017882,3]
[401349540,1768150246401,-1058.15318076,0.0001789,2]
[401349542,1768150246411,-25000.0,0.00017891,3]
[401349544,1768150246422,-1089.8409,0.00017899,2]
[401349546,1768150246432,-1741.4494,0.00017899,2]
[401349548,1768150246441,-8685.0,0.000179,2]
[401349551,1768150246455,-592.33281092,0.000179,2]
[401349553,1768150246464,-25000.0,0.000179,3]
[401349554,1768150246474,-9506.50782153,0.000179,3]
[401349555,1768150246483,-330.14190427,0.000179,2]
[401349556,1768150246492,-654.04301641,0.000179,2]
[401349557,1768150246502,-654.04301631,0.000179,2]
[401349558,1768150246512,-654.04301631,0.000179,2]
[401349559,1768150246522,-654.04301631,0.000179,2]
[401349560,1768150246531,-654.04301631,0.000179,2]
[401349562,1768150246541,-654.04301631,0.000179,2]
[401349563,1768150246551,-654.04301631,0.000179,2]
[401349565,1768150246561,-654.04301631,0.000179,2]
[401349567,1768150246571,-654.04301631,0.000179,2]
[401349570,1768150246581,-654.04301631,0.000179,2]
[401349572,1768150246591,-654.04301631,0.000179,2]
[401349574,1768150246601,-654.04301631,0.000179,2]
[401349576,1768150246610,-654.04301631,0.000179,2]
[401349578,1768150246620,-654.04301631,0.000179,2]
[401349580,1768150246629,-654.04301631,0.000179,2]
[401349582,1768150246639,-654.04301631,0.000179,2]
[401349584,1768150246648,-654.04301631,0.000179,2]
[401349586,1768150246657,-654.04301631,0.000179,2]
[401349588,1768150246667,-1000.0,0.000179,2]
[401349590,1768150246677,-654.04301631,0.000179,2]
[401349592,1768150246687,-654.04301631,0.000179,2]
[401349594,1768150246696,-791.45935323,0.000179,3]
[401349596,1768150246706,-590.06318863,0.000179,2]
[401349598,1768150246715,-500.0,0.000179,2]
[401349600,1768150246724,-500.0,0.000179,2]
[401349602,1768150246734,-500.0,0.000179,2]
[401349604,1768150246743,-500.0,0.000179,2]
[401349605,1768150246753,-500.0,0.000179,2]
[401349607,1768150246762,-500.0,0.000179,2]
[401349609,1768150246771,-500.0,0.000179,2]
[401349611,1768150246780,-500.0,0.000179,2]
[401349613,1768150246789,-500.0,0.000179,2]
[401349615,1768150246799,-500.0,0.000179,2]
[401349618,1768150246811,-500.0,0.000179,2]
[401349620,1768150246826,-500.0,0.000179,2]
[401349622,1768150246836,-500.0,0.000179,2]
[401349624,1768150246846,-500.0,0.000179,2]
[401349626,1768150246856,-500.0,0.000179,2]
[401349628,1768150246868,-500.0,0.000179,2]
[401349630,1768150246877,-500.0,0.000179,2]
[401349632,1768150246888,-25327.7844931,0.00017904,2]
[401349634,1768150246902,-971.11466,0.0001791,2]
[401349636,1768150246911,-1000.0,0.0001792,2]
[401349638,1768150246921,-1000.0,0.0001792,2]
[401349640,1768150246930,-1000.0,0.00017922,2]
[401349642,1768150246940,-157.14731633,0.00017927,2]
[401349644,1768150246949,-616.50589084,0.00017944,2]
[401349646,1768150246957,-1000.0,0.00017959,2]
[401349648,1768150246966,-1000.0,0.00017963,2]
[401349650,1768150246975,-1113.0,0.00017963,2]
[401349652,1768150246985,-1000.0,0.00017967,2]
[401349654,1768150246994,-1000.0,0.00017968,2]
[401349656,1768150247003,-5572.8826584,0.00017972,2]
[401349658,1768150247016,-1058.15318076,0.00017973,2]
[401349660,1768150247025,-500.0,0.00017973,2]
[401349662,1768150247035,-380.05360747,0.00017973,2]
[401349664,1768150247044,-500.0,0.00017973,2]
[401349666,1768150247054,-500.0,0.00017973,2]
[401349668,1768150247063,-500.0,0.00017973,2]
[401349670,1768150247072,-500.0,0.00017973,2]
[401349672,1768150247083,-498.39272947,0.00017973,2]
[401349674,1768150247092,-500.0,0.00017973,2]
[401349676,1768150247101,-500.0,0.00017973,2]
[401349678,1768150247111,-500.0,0.00017973,2]
[401349680,1768150247120,-500.0,0.00017973,2]
[401349682,1768150247131,-500.0,0.00017973,2]
[401349685,1768150247141,-500.0,0.00017973,2]
[401349687,1768150247151,-500.0,0.00017973,2]
[401349688,1768150247161,-500.0,0.00017973,2]
[401349690,1768150247170,-500.0,0.00017973,2]
[401349692,1768150247180,-500.0,0.00017973,2]
[401349695,1768150247191,-500.0,0.00017973,2]
[401349697,1768150247200,-500.0,0.00017973,2]
[401349699,1768150247213,-500.0,0.00017973,2]
[401349701,1768150247223,-500.0,0.00017973,2]
[401349703,1768150247233,-500.0,0.00017973,2]
[401349705,1768150247243,-1000.0,0.00017973,2]
[401349707,1768150247253,-1000.0,0.00017979,2]
[401349709,1768150247263,-500.0,0.00017983,2]
[401349711,1768150247273,-151.0,0.00017984,2]
[401349713,1768150247283,-151.0,0.00017984,2]
[401349715,1768150247292,-152.0,0.00017984,2]
[401349717,1768150247302,-158.0,0.00017984,2]
[401349719,1768150247312,-158.0,0.00017984,2]
[401349721,1768150247323,-151.0,0.00017984,2]
[401349723,1768150247332,-151.0,0.00017984,2]
[401349725,1768150247342,-152.0,0.00017984,2]
[401349727,1768150247351,-3706.6613388,0.00017984,2]
[401349729,1768150247361,-243942.7882673,0.00017984,2]
[401349731,1768150247370,-1857.6275529,0.00017984,2]
[401349733,1768150247380,-119314.211673,0.00017984,2]
[401349735,1768150247389,-188366.0245025,0.00017984,2]
[401349737,1768150247399,-151.0,0.00017984,2]
[401349739,1768150247409,-151.0,0.00017984,2]
[401349741,1768150247419,-151.0,0.00017984,2]
[401349743,1768150247429,-151.0,0.00017984,2]
[401349745,1768150247439,-151.0,0.00017984,2]
[401349747,1768150247449,-247.444459,0.00017984,2]
[401349749,1768150247459,-151.0,0.00017984,2]
[401349782,1768150247747,-151.0,0.00017984,2]
[401349784,1768150247757,-221.726675,0.00017984,2]
[401349786,1768150247766,-345.270868,0.00017984,2]
[401349788,1768150247775,-345.270868,0.00017984,2]
[401349790,1768150247785,-345.270868,0.00017984,2]
[401349792,1768150247794,-345.270868,0.00017984,2]
[401349794,1768150247804,-159.384319,0.00017984,2]
[401349796,1768150247813,-151.0,0.00017984,2]
[401349798,1768150247828,-172.082779,0.00017984,2]
[401349800,1768150247837,-151.0,0.00017984,2]
[401349802,1768150247847,-151.0,0.00017984,2]
[401349804,1768150247856,-223.771483,0.00017984,2]
[401349806,1768150247867,-151.0,0.00017984,2]
[401349808,1768150247876,-151.0,0.00017984,2]
[401349810,1768150247886,-151.0,0.00017984,2]
[401349812,1768150247895,-151.0,0.00017984,2]
[401349814,1768150247905,-151.0,0.00017984,2]
[401349816,1768150247915,-151.0,0.00017984,2]
[401349818,1768150247925,-171.539369,0.00017984,2]
[401349820,1768150247935,-151.0,0.00017984,2]
[401349821,1768150247944,-151.0,0.00017984,2]
[401349822,1768150247954,-151.0,0.00017984,2]
[401349823,1768150247963,-300.872706,0.00017984,2]
[401349824,1768150247974,-151.0,0.00017984,2]
[401349825,1768150247983,-231.340004,0.00017984,2]
[401349826,1768150247993,-1069.386623,0.00017984,2]
[401349827,1768150248003,-334.294396,0.00017984,2]
[401349829,1768150248012,-1069.386623,0.00017984,2]
[401349831,1768150248022,-334.294396,0.00017984,2]
[401349833,1768150248032,-520.954239,0.00017984,2]
[401349836,1768150248042,-1069.386623,0.00017984,2]
[401349837,1768150248051,-334.294396,0.00017984,2]
[401349839,1768150248061,-520.954239,0.00017984,2]
[401349841,1768150248071,-1069.386623,0.00017984,2]
[401349844,1768150248080,-334.294396,0.00017984,2]
[401349846,1768150248090,-520.954239,0.00017984,2]
[401349848,1768150248100,-520.954239,0.00017984,2]
[401349850,1768150248110,-151.0,0.00017984,2]
[401349852,1768150248120,-183.540129,0.00017984,2]
[401349854,1768150248129,-151.0,0.00017984,2]
[401349856,1768150248140,-151.0,0.00017984,2]
[401349858,1768150248149,-151.0,0.00017984,2]
[401349860,1768150248159,-151.0,0.00017984,2]
[401349862,1768150248169,-151.0,0.00017984,2]
[401349864,1768150248179,-151.0,0.00017984,2]
[401349866,1768150248188,-151.0,0.00017984,2]
[401349868,1768150248197,-151.0,0.00017984,2]
[401349870,1768150248208,-174.887374,0.00017984,2]
[401349872,1768150248218,-151.0,0.00017984,2]
[401349874,1768150248229,-151.0,0.00017984,2]
[401349876,1768150248239,-151.0,0.00017984,2]
[401349878,1768150248250,-151.0,0.00017984,2]
[401349880,1768150248259,-151.0,0.00017984,2]
[401349882,1768150248269,-151.0,0.00017984,2]
[401349884,1768150248280,-754.789807,0.00017984,2]
[401349886,1768150248290,-151.0,0.00017984,2]
[401349888,1768150248300,-754.789807,0.00017984,2]
[401349890,1768150248310,-754.789807,0.00017984,2]
[401349892,1768150248319,-754.789807,0.00017984,2]
[401349894,1768150248329,-187.162927,0.00017984,2]
[401349896,1768150248338,-506.865865,0.00017984,2]
[401349898,1768150248348,-506.865865,0.00017984,2]
[401349900,1768150248357,-506.865865,0.00017984,2]